[Event "*** Titled Tuesday Blitz"]
[Site "Chess.com"]
[Date "2021.02.02"]
[Round "9"]
[White "DamianoLew95"]
[Black "DanilNajdin"]
[Result "1-0"]
[WhiteElo "2597"]
[BlackElo "2467"]
[TimeControl "180+1"]
[EndTime "11:47:05 PST"]
[Termination "DamianoLew95 won by resignation"]

1. d4 {[%clk 0:03:00.9]} 1... f5 {[%clk 0:02:58.9]} 2. Nh3 {[%clk 0:02:59.6]}
2... Nf6 {[%clk 0:02:57.7]} 3. g3 {[%clk 0:02:59.3]} 3... e6 {[%clk 0:02:50.8]}
4. Nf4 {[%clk 0:02:58.5]} 4... d6 {[%clk 0:02:48.9]} 5. h4 {[%clk 0:02:58.7]}
5... c6 {[%clk 0:02:44.8]} 6. Bg2 {[%clk 0:02:55.4]} 6... e5 {[%clk 0:02:44.5]}
7. dxe5 {[%clk 0:02:54.8]} 7... dxe5 {[%clk 0:02:45.4]} 8. Qxd8+ {[%clk
0:02:55.4]} 8... Kxd8 {[%clk 0:02:46.3]} 9. Nd3 {[%clk 0:02:56.1]} 9... e4
{[%clk 0:02:45.6]} 10. Nf4 {[%clk 0:02:53.9]} 10... Bd6 {[%clk 0:02:35.5]} 11.
Be3 {[%clk 0:02:53.2]} 11... Ke7 {[%clk 0:02:20.9]} 12. Nd2 {[%clk 0:02:52.4]}
12... Nbd7 {[%clk 0:02:20.6]} 13. Nc4 {[%clk 0:02:51.8]} 13... Bc7 {[%clk
0:02:19.4]} 14. Bd4 {[%clk 0:02:45.8]} 14... b6 {[%clk 0:02:00.8]} 15. Ne3
{[%clk 0:02:44.1]} 15... Ne5 {[%clk 0:01:58.3]} 16. O-O-O {[%clk 0:02:38.7]}
16... Bd7 {[%clk 0:01:56.9]} 17. f3 {[%clk 0:02:26.1]} 17... Rad8 {[%clk
0:01:49.1]} 18. Bc3 {[%clk 0:02:11]} 18... Rhe8 {[%clk 0:01:42.5]} 19. h5 {[%clk
0:02:07.3]} 19... Bc8 {[%clk 0:01:39.8]} 20. h6 {[%clk 0:02:02]} 20... g5 {[%clk
0:01:28.8]} 21. Nh5 {[%clk 0:01:57.6]} 21... Rxd1+ {[%clk 0:01:25.6]} 22. Kxd1
{[%clk 0:01:54.6]} 22... Nxh5 {[%clk 0:01:18.6]} 23. Rxh5 {[%clk 0:01:54.1]}
23... exf3 {[%clk 0:01:15]} 24. exf3 {[%clk 0:01:55]} 24... Nf7 {[%clk 0:01:15]}
25. Nf1 {[%clk 0:01:42.1]} 25... Ba6 {[%clk 0:01:05.8]} 26. Ke1 {[%clk
0:01:37.3]} 26... Bxf1 {[%clk 0:00:58.6]} 27. Kxf1 {[%clk 0:01:32.1]} 27... Bxg3
{[%clk 0:00:58.7]} 28. Bh3 {[%clk 0:01:29.9]} 28... Ke6 {[%clk 0:00:25.4]} 29.
Bd2 {[%clk 0:01:21]} 29... Bh4 {[%clk 0:00:18.1]} 30. f4 {[%clk 0:01:15.3]}
30... Kf6 {[%clk 0:00:18.1]} 31. fxg5+ {[%clk 0:01:07.6]} 31... Bxg5 {[%clk
0:00:19]} 32. Bxg5+ {[%clk 0:01:01]} 32... Nxg5 {[%clk 0:00:19.9]} 33. Bg2
{[%clk 0:01:01.3]} 33... Ne4 {[%clk 0:00:18.2]} 34. Rh2 {[%clk 0:00:55]} 34...
Rd8 {[%clk 0:00:13.6]} 35. Ke1 {[%clk 0:00:48.4]} 35... Rd6 {[%clk 0:00:11.3]}
36. Bf3 {[%clk 0:00:46.5]} 36... Ke5 {[%clk 0:00:11.5]} 37. Be2 {[%clk
0:00:40.5]} 37... Ng3 {[%clk 0:00:09.5]} 38. Bd3 {[%clk 0:00:37.1]} 38... c5
{[%clk 0:00:09.9]} 39. b3 {[%clk 0:00:36.8]} 39... f4 {[%clk 0:00:09.2]} 40. Rh4
{[%clk 0:00:34.9]} 40... Nf5 {[%clk 0:00:08.7]} 41. Rh5 {[%clk 0:00:35]} 41...
Rf6 {[%clk 0:00:08.1]} 42. Kf2 {[%clk 0:00:35.2]} 42... Ke6 {[%clk 0:00:08.3]}
43. Kf3 {[%clk 0:00:33.4]} 43... Nxh6 {[%clk 0:00:08]} 44. Bxh7 {[%clk
0:00:32.5]} 44... Nf7 {[%clk 0:00:08.3]} 45. Bg8 {[%clk 0:00:30]} 45... Ke7
{[%clk 0:00:07.4]} 46. Rh7 {[%clk 0:00:28.7]} 46... Kf8 {[%clk 0:00:07.7]} 47.
Bxf7 {[%clk 0:00:26.9]} 47... Rxf7 {[%clk 0:00:08.6]} 48. Rxf7+ {[%clk
0:00:26.8]} 48... Kxf7 {[%clk 0:00:08.7]} 49. Kxf4 {[%clk 0:00:27.3]} 49... Kf6
{[%clk 0:00:09.4]} 50. Ke4 {[%clk 0:00:24.2]} 50... Ke6 {[%clk 0:00:09.4]} 51.
c4 {[%clk 0:00:23.7]} 51... a6 {[%clk 0:00:06]} 52. a3 {[%clk 0:00:23.6]} 52...
Kd6 {[%clk 0:00:06.3]} 53. Kf5 {[%clk 0:00:23]} 53... b5 {[%clk 0:00:05.4]} 54.
Kf6 {[%clk 0:00:21.4]} 54... a5 {[%clk 0:00:05.7]} 55. a4 {[%clk 0:00:21.4]}
55... bxa4 {[%clk 0:00:04.4]} 56. bxa4 {[%clk 0:00:21.4]} 56... Kd7 {[%clk
0:00:03.4]} 57. Ke5 {[%clk 0:00:21.6]} 57... Kc6 {[%clk 0:00:02.8]} 58. Ke6
{[%clk 0:00:22.2]} 58... Kc7 {[%clk 0:00:03.2]} 59. Kd5 {[%clk 0:00:23.1]} 59...
Kb6 {[%clk 0:00:04]} 60. Kd6 {[%clk 0:00:23.3]} 60... Kb7 {[%clk 0:00:04.7]} 61.
Kxc5 {[%clk 0:00:23.9]} 1-0

[Event "*** Titled Tuesday Blitz"]
[Site "Chess.com"]
[Date "2021.02.02"]
[Round "9"]
[White "DinaBelenkaya"]
[Black "Artem_Sadovsky"]
[Result "0-1"]
[WhiteElo "2387"]
[BlackElo "2558"]
[TimeControl "180+1"]
[EndTime "11:47:05 PST"]
[Termination "Artem_Sadovsky won by checkmate"]

1. e4 {[%clk 0:03:00.9]} 1... g6 {[%clk 0:02:46.5]} 2. d4 {[%clk 0:02:58.6]}
2... Bg7 {[%clk 0:02:44.6]} 3. Nc3 {[%clk 0:02:59.5]} 3... d6 {[%clk 0:02:43.3]}
4. f4 {[%clk 0:02:55.4]} 4... Nd7 {[%clk 0:02:37.2]} 5. Bd3 {[%clk 0:02:49.1]}
5... Bxd4 {[%clk 0:02:26.2]} 6. Nf3 {[%clk 0:02:49.3]} 6... Bg7 {[%clk
0:02:26.5]} 7. Be3 {[%clk 0:02:49.5]} 7... c5 {[%clk 0:02:24.2]} 8. Bc4 {[%clk
0:02:37.4]} 8... Nb6 {[%clk 0:02:18.5]} 9. Be2 {[%clk 0:02:21.7]} 9... Nf6
{[%clk 0:02:03.5]} 10. h3 {[%clk 0:02:17]} 10... O-O {[%clk 0:02:01.3]} 11. O-O
{[%clk 0:02:16.6]} 11... Nh5 {[%clk 0:01:55.4]} 12. Qe1 {[%clk 0:02:12.7]} 12...
f5 {[%clk 0:01:33.9]} 13. e5 {[%clk 0:02:11.1]} 13... d5 {[%clk 0:01:28.9]} 14.
Bxc5 {[%clk 0:02:10.7]} 14... Nxf4 {[%clk 0:01:26.1]} 15. Rd1 {[%clk 0:02:07]}
15... Qc7 {[%clk 0:01:18.5]} 16. Ba3 {[%clk 0:02:02.3]} 16... Rd8 {[%clk
0:01:14.7]} 17. Bd3 {[%clk 0:01:42.6]} 17... a6 {[%clk 0:01:03.5]} 18. Qg3
{[%clk 0:01:29]} 18... Nxd3 {[%clk 0:00:56.6]} 19. cxd3 {[%clk 0:01:29.9]} 19...
d4 {[%clk 0:00:45.7]} 20. Ne2 {[%clk 0:01:29.6]} 20... Nd5 {[%clk 0:00:46]} 21.
Rc1 {[%clk 0:01:27.1]} 21... Qb6 {[%clk 0:00:42.4]} 22. Bc5 {[%clk 0:01:25.6]}
22... Qxb2 {[%clk 0:00:40.1]} 23. Nexd4 {[%clk 0:01:26]} 23... Ne3 {[%clk
0:00:37.8]} 24. Rfe1 {[%clk 0:01:23.3]} 24... f4 {[%clk 0:00:34.4]} 25. Qf2
{[%clk 0:01:21.4]} 25... Qxf2+ {[%clk 0:00:31.7]} 26. Kxf2 {[%clk 0:01:22.3]}
26... Nd5 {[%clk 0:00:29.6]} 27. Nb3 {[%clk 0:01:05.8]} 27... h6 {[%clk
0:00:29.2]} 28. d4 {[%clk 0:01:05.9]} 28... g5 {[%clk 0:00:27.3]} 29. Nfd2
{[%clk 0:01:05.1]} 29... b6 {[%clk 0:00:26.7]} 30. Ba3 {[%clk 0:01:04.8]} 30...
Bb7 {[%clk 0:00:27.2]} 31. Ne4 {[%clk 0:01:02.7]} 31... Rac8 {[%clk 0:00:24.1]}
32. Ned2 {[%clk 0:00:54]} 32... Kf7 {[%clk 0:00:23.6]} 33. g3 {[%clk 0:00:36.3]}
33... Ke6 {[%clk 0:00:21.6]} 34. g4 {[%clk 0:00:32.4]} 34... Rxc1 {[%clk
0:00:19.8]} 35. Rxc1 {[%clk 0:00:32.1]} 35... Rc8 {[%clk 0:00:20.7]} 36. Rxc8
{[%clk 0:00:32.2]} 36... Bxc8 {[%clk 0:00:21.6]} 37. Nc4 {[%clk 0:00:32.7]}
37... Bd7 {[%clk 0:00:20.4]} 38. Nbd2 {[%clk 0:00:29.6]} 38... Bc6 {[%clk
0:00:17.7]} 39. Nf3 {[%clk 0:00:26.7]} 39... Nc3 {[%clk 0:00:17.6]} 40. Nxb6
{[%clk 0:00:24.9]} 40... Nxa2 {[%clk 0:00:17.3]} 41. Nc4 {[%clk 0:00:23.8]}
41... Nc3 {[%clk 0:00:16.4]} 42. Nfd2 {[%clk 0:00:20.3]} 42... Nb5 {[%clk
0:00:16.2]} 43. Bc5 {[%clk 0:00:19.6]} 43... Bd5 {[%clk 0:00:16.4]} 44. Nb6
{[%clk 0:00:19.6]} 44... Bc6 {[%clk 0:00:15.8]} 45. Ndc4 {[%clk 0:00:19.6]}
45... Nc3 {[%clk 0:00:13.7]} 46. Na5 {[%clk 0:00:20.2]} 46... Bd5 {[%clk
0:00:12.6]} 47. Nxd5 {[%clk 0:00:19.5]} 47... Kxd5 {[%clk 0:00:12]} 48. Nb7
{[%clk 0:00:18]} 48... Bxe5 {[%clk 0:00:10.7]} 49. dxe5 {[%clk 0:00:16.3]} 49...
Kc6 {[%clk 0:00:11.4]} 50. Bxe7 {[%clk 0:00:15.6]} 50... Kxb7 {[%clk 0:00:11.3]}
51. h4 {[%clk 0:00:15.7]} 51... Kc6 {[%clk 0:00:06.9]} 52. hxg5 {[%clk
0:00:15.2]} 52... hxg5 {[%clk 0:00:07.7]} 53. Bxg5 {[%clk 0:00:15.4]} 53... Ne4+
{[%clk 0:00:07.9]} 54. Kf3 {[%clk 0:00:14.9]} 54... Nxg5+ {[%clk 0:00:08.5]} 55.
Kxf4 {[%clk 0:00:15.5]} 55... Ne6+ {[%clk 0:00:08.5]} 56. Kf5 {[%clk 0:00:15.9]}
56... Kd5 {[%clk 0:00:09]} 57. g5 {[%clk 0:00:15.5]} 57... a5 {[%clk 0:00:09.5]}
58. g6 {[%clk 0:00:15.3]} 58... a4 {[%clk 0:00:09.9]} 59. g7 {[%clk 0:00:15.9]}
59... Nxg7+ {[%clk 0:00:09.6]} 60. Kf6 {[%clk 0:00:16.1]} 60... Ne6 {[%clk
0:00:10.5]} 61. Kf7 {[%clk 0:00:15.3]} 61... a3 {[%clk 0:00:11.4]} 62. Kg8
{[%clk 0:00:13.9]} 62... a2 {[%clk 0:00:12.3]} 63. Kh7 {[%clk 0:00:14.4]} 63...
a1=Q {[%clk 0:00:13.2]} 64. Kg8 {[%clk 0:00:15.2]} 64... Qg1+ {[%clk 0:00:13.1]}
65. Kh7 {[%clk 0:00:16.1]} 65... Qg7# {[%clk 0:00:13.7]} 0-1

[Event "*** Titled Tuesday Blitz"]
[Site "Chess.com"]
[Date "2021.02.02"]
[Round "9"]
[White "almo64"]
[Black "anon219"]
[Result "1-0"]
[WhiteElo "2747"]
[BlackElo "2874"]
[TimeControl "180+1"]
[EndTime "11:47:06 PST"]
[Termination "almo64 won by resignation"]

1. e4 {[%clk 0:03:00.9]} 1... e6 {[%clk 0:02:54.4]} 2. d4 {[%clk 0:02:59.9]}
2... d5 {[%clk 0:02:54.3]} 3. e5 {[%clk 0:03:00.3]} 3... c5 {[%clk 0:02:50.1]}
4. Nf3 {[%clk 0:02:59.5]} 4... cxd4 {[%clk 0:02:39.8]} 5. Nxd4 {[%clk
0:02:54.5]} 5... Nc6 {[%clk 0:02:39.5]} 6. Bb5 {[%clk 0:02:53.1]} 6... Bd7
{[%clk 0:02:35.2]} 7. Nxc6 {[%clk 0:02:51.9]} 7... bxc6 {[%clk 0:02:34.9]} 8.
Bd3 {[%clk 0:02:50.5]} 8... Qc7 {[%clk 0:02:35.3]} 9. Qe2 {[%clk 0:02:49.8]}
9... Ne7 {[%clk 0:02:35.5]} 10. O-O {[%clk 0:02:49.1]} 10... c5 {[%clk
0:02:26.8]} 11. c3 {[%clk 0:02:43.9]} 11... Nc6 {[%clk 0:02:23.2]} 12. Re1
{[%clk 0:02:43.2]} 12... Rb8 {[%clk 0:02:18.2]} 13. Nd2 {[%clk 0:02:38.3]} 13...
g6 {[%clk 0:02:16.3]} 14. Nf3 {[%clk 0:02:33.2]} 14... Bg7 {[%clk 0:02:15.3]}
15. h4 {[%clk 0:02:31.5]} 15... O-O {[%clk 0:01:42.6]} 16. h5 {[%clk 0:02:30.8]}
16... Ne7 {[%clk 0:01:37.6]} 17. Bg5 {[%clk 0:02:25.2]} 17... f6 {[%clk
0:01:33.5]} 18. exf6 {[%clk 0:02:22.7]} 18... Bxf6 {[%clk 0:01:34.4]} 19. hxg6
{[%clk 0:02:18.3]} 19... hxg6 {[%clk 0:01:30.8]} 20. Rad1 {[%clk 0:01:38]} 20...
Kg7 {[%clk 0:01:08.1]} 21. Qd2 {[%clk 0:01:36.5]} 21... Bxg5 {[%clk 0:01:03.6]}
22. Qxg5 {[%clk 0:01:36.1]} 22... Rf6 {[%clk 0:01:04.2]} 23. Ne5 {[%clk
0:01:32.7]} 23... Rh8 {[%clk 0:00:54.6]} 24. Ng4 {[%clk 0:01:21.8]} 24... Rf7
{[%clk 0:00:50.7]} 25. Qe5+ {[%clk 0:01:21.5]} 25... Qxe5 {[%clk 0:00:50.4]} 26.
Nxe5 {[%clk 0:01:21.3]} 26... Be8 {[%clk 0:00:49.8]} 27. Nxf7 {[%clk 0:01:20.5]}
27... Bxf7 {[%clk 0:00:48.4]} 28. c4 {[%clk 0:01:19.8]} 28... Nc6 {[%clk
0:00:46]} 29. cxd5 {[%clk 0:01:14.8]} 29... exd5 {[%clk 0:00:46.9]} 30. b3
{[%clk 0:01:14.9]} 30... Kf6 {[%clk 0:00:45.2]} 31. Rc1 {[%clk 0:01:15]} 31...
c4 {[%clk 0:00:40.5]} 32. bxc4 {[%clk 0:01:00.2]} 32... Ne5 {[%clk 0:00:40.2]}
33. Re3 {[%clk 0:00:52.6]} 33... dxc4 {[%clk 0:00:38.6]} 34. Be2 {[%clk
0:00:52.6]} 34... g5 {[%clk 0:00:36.5]} 35. Ra3 {[%clk 0:00:51.8]} 35... Rd8
{[%clk 0:00:34.2]} 36. Ra6+ {[%clk 0:00:47.9]} 36... Kf5 {[%clk 0:00:32.4]} 37.
Rxa7 {[%clk 0:00:47.2]} 37... Rd2 {[%clk 0:00:30.1]} 38. Rxf7+ {[%clk 0:00:43]}
38... Nxf7 {[%clk 0:00:31]} 39. Bxc4 {[%clk 0:00:42.9]} 39... Ne5 {[%clk
0:00:29.3]} 40. Bb3 {[%clk 0:00:32.5]} 40... Ng4 {[%clk 0:00:29.6]} 41. Re1
{[%clk 0:00:19.4]} 41... Ne5 {[%clk 0:00:26.3]} 42. Rd1 {[%clk 0:00:15.7]} 42...
Rb2 {[%clk 0:00:24.5]} 43. g3 {[%clk 0:00:14]} 43... Nf3+ {[%clk 0:00:22.9]} 44.
Kf1 {[%clk 0:00:12.6]} 44... Nd2+ {[%clk 0:00:18.9]} 45. Kg2 {[%clk 0:00:13]}
45... Nxb3 {[%clk 0:00:18.6]} 46. axb3 {[%clk 0:00:13.3]} 46... Rxb3 {[%clk
0:00:19.5]} 47. Rd5+ {[%clk 0:00:13.5]} 47... Kf6 {[%clk 0:00:15.4]} 48. Kh3
{[%clk 0:00:13.2]} 48... Rb4 {[%clk 0:00:14]} 49. f3 {[%clk 0:00:09.6]} 49...
Kg6 {[%clk 0:00:12.7]} 50. Rd6+ {[%clk 0:00:09.4]} 50... Kf5 {[%clk 0:00:12.7]}
51. g4+ {[%clk 0:00:09.8]} 51... Ke5 {[%clk 0:00:10.4]} 52. Rg6 {[%clk 0:00:10]}
52... Kf4 {[%clk 0:00:09.1]} 53. Rf6+ {[%clk 0:00:10.3]} 53... Ke3 {[%clk
0:00:08.7]} 54. Kg3 {[%clk 0:00:10.8]} 54... Rb1 {[%clk 0:00:05.5]} 55. Re6+
{[%clk 0:00:09.3]} 55... Kd4 {[%clk 0:00:04]} 56. Rd6+ {[%clk 0:00:09.5]} 56...
Ke5 {[%clk 0:00:04]} 57. Rg6 {[%clk 0:00:08.7]} 1-0

[Event "*** Titled Tuesday Blitz"]
[Site "Chess.com"]
[Date "2021.02.02"]
[Round "9"]
[White "profofchess"]
[Black "Zmof"]
[Result "0-1"]
[WhiteElo "2379"]
[BlackElo "2146"]
[TimeControl "180+1"]
[EndTime "11:47:06 PST"]
[Termination "Zmof won on time"]

1. e4 {[%clk 0:03:00.9]} 1... c5 {[%clk 0:02:59.3]} 2. Nf3 {[%clk 0:02:57.4]}
2... Nc6 {[%clk 0:02:59.3]} 3. Bb5 {[%clk 0:02:56.8]} 3... g6 {[%clk 0:02:59.1]}
4. O-O {[%clk 0:02:56.4]} 4... Bg7 {[%clk 0:02:58.9]} 5. Re1 {[%clk 0:02:57.1]}
5... e5 {[%clk 0:02:57.1]} 6. Bxc6 {[%clk 0:02:51.4]} 6... bxc6 {[%clk
0:02:51.6]} 7. c3 {[%clk 0:02:48.1]} 7... Ne7 {[%clk 0:02:51.4]} 8. d4 {[%clk
0:02:47.9]} 8... cxd4 {[%clk 0:02:51.8]} 9. cxd4 {[%clk 0:02:48.8]} 9... exd4
{[%clk 0:02:52.4]} 10. Nxd4 {[%clk 0:02:49.5]} 10... O-O {[%clk 0:02:53]} 11.
Nc3 {[%clk 0:02:47.4]} 11... d6 {[%clk 0:02:52.1]} 12. Bg5 {[%clk 0:02:45.5]}
12... Bb7 {[%clk 0:02:46.1]} 13. Qd2 {[%clk 0:02:40.5]} 13... Re8 {[%clk
0:02:38.9]} 14. Rad1 {[%clk 0:02:38.8]} 14... Qb6 {[%clk 0:02:28.4]} 15. Nb3
{[%clk 0:02:36.7]} 15... Rad8 {[%clk 0:02:27.5]} 16. Qf4 {[%clk 0:02:30.3]}
16... Be5 {[%clk 0:02:22.1]} 17. Qh4 {[%clk 0:02:29.9]} 17... Qc7 {[%clk
0:02:16.4]} 18. Re3 {[%clk 0:02:08.3]} 18... Bc8 {[%clk 0:01:53.9]} 19. Kh1
{[%clk 0:01:38.6]} 19... Be6 {[%clk 0:01:50.5]} 20. f4 {[%clk 0:01:33.5]} 20...
Bg7 {[%clk 0:01:50.2]} 21. Nd4 {[%clk 0:01:20.9]} 21... c5 {[%clk 0:01:37.7]}
22. Nxe6 {[%clk 0:01:19.3]} 22... fxe6 {[%clk 0:01:37.6]} 23. Rh3 {[%clk
0:01:19.4]} 23... h5 {[%clk 0:01:35.6]} 24. Rg3 {[%clk 0:01:16.5]} 24... Kh7
{[%clk 0:01:33.7]} 25. Rgd3 {[%clk 0:00:54.3]} 25... d5 {[%clk 0:01:26.7]} 26.
g4 {[%clk 0:00:27.4]} 26... Bxc3 {[%clk 0:01:10.4]} 27. bxc3 {[%clk 0:00:24.7]}
27... Kg8 {[%clk 0:00:45.4]} 28. gxh5 {[%clk 0:00:21.8]} 28... dxe4 {[%clk
0:00:35.2]} 29. hxg6 {[%clk 0:00:17.8]} 29... Nxg6 {[%clk 0:00:31.6]} 30. Rxd8
{[%clk 0:00:14.7]} 30... Nxh4 {[%clk 0:00:30]} 31. Rxe8+ {[%clk 0:00:14.3]}
31... Kf7 {[%clk 0:00:28.3]} 32. Re7+ {[%clk 0:00:11.3]} 32... Qxe7 {[%clk
0:00:28.3]} 33. Bxe7 {[%clk 0:00:11.7]} 33... Kxe7 {[%clk 0:00:29]} 34. Kg1
{[%clk 0:00:09.5]} 34... Kf6 {[%clk 0:00:28.2]} 35. Kf2 {[%clk 0:00:09.2]} 35...
Kf5 {[%clk 0:00:27.9]} 36. Kg3 {[%clk 0:00:07.1]} 36... Ng6 {[%clk 0:00:22.7]}
37. h4 {[%clk 0:00:04.7]} 37... Nxf4 {[%clk 0:00:19.8]} 38. Rf1 {[%clk
0:00:04.6]} 38... e5 {[%clk 0:00:20.1]} 39. h5 {[%clk 0:00:05]} 39... Kg5 {[%clk
0:00:20.3]} 40. h6 {[%clk 0:00:02.4]} 40... Kxh6 {[%clk 0:00:20.3]} 41. Re1
{[%clk 0:00:02.9]} 41... Kg5 {[%clk 0:00:16.3]} 42. Rxe4 {[%clk 0:00:03.5]}
42... Kf5 {[%clk 0:00:17.1]} 43. Ra4 {[%clk 0:00:03.9]} 43... Ne2+ {[%clk
0:00:17.3]} 44. Kf3 {[%clk 0:00:03.5]} 44... Nxc3 {[%clk 0:00:18]} 45. Rxa7
{[%clk 0:00:03.7]} 45... e4+ {[%clk 0:00:18.3]} 46. Ke3 {[%clk 0:00:03.6]} 46...
Nd5+ {[%clk 0:00:18.6]} 47. Ke2 {[%clk 0:00:03.2]} 47... Ke5 {[%clk 0:00:19.1]}
48. a4 {[%clk 0:00:02.7]} 48... Kd4 {[%clk 0:00:19.5]} 49. Rb7 {[%clk
0:00:02.5]} 49... Nc3+ {[%clk 0:00:18.2]} 50. Kd2 {[%clk 0:00:02.8]} 50... Nxa4
{[%clk 0:00:18.9]} 51. Rd7+ {[%clk 0:00:03.1]} 51... Kc4 {[%clk 0:00:18.5]} 52.
Ke3 {[%clk 0:00:03.3]} 52... Nc3 {[%clk 0:00:18.2]} 53. Rd8 {[%clk 0:00:02.9]}
53... Kb3 {[%clk 0:00:10.8]} 54. Rb8+ {[%clk 0:00:02.9]} 54... Kc2 {[%clk
0:00:10.6]} 55. Rc8 {[%clk 0:00:03.2]} 55... Nd5+ {[%clk 0:00:03.7]} 56. Kxe4
{[%clk 0:00:01.9]} 56... Nb4 {[%clk 0:00:04.5]} 0-1

[Event "*** Titled Tuesday Blitz"]
[Site "Chess.com"]
[Date "2021.02.02"]
[Round "9"]
[White "The_Machine04"]
[Black "bylavochka"]
[Result "1-0"]
[WhiteElo "2476"]
[BlackElo "2101"]
[TimeControl "180+1"]
[EndTime "11:47:07 PST"]
[Termination "The_Machine04 won by resignation"]

1. d4 {[%clk 0:03:00.9]} 1... Nf6 {[%clk 0:02:59.2]} 2. Bg5 {[%clk 0:03:00.4]}
2... e6 {[%clk 0:02:55.8]} 3. Nd2 {[%clk 0:03:00]} 3... Be7 {[%clk 0:02:56.2]}
4. e4 {[%clk 0:02:58.7]} 4... O-O {[%clk 0:02:56.4]} 5. Bd3 {[%clk 0:02:58]}
5... d6 {[%clk 0:02:49.9]} 6. c3 {[%clk 0:02:57.5]} 6... e5 {[%clk 0:02:50.1]}
7. dxe5 {[%clk 0:02:56.4]} 7... dxe5 {[%clk 0:02:51]} 8. Bc2 {[%clk 0:02:56]}
8... Nbd7 {[%clk 0:02:46.4]} 9. Qe2 {[%clk 0:02:55.8]} 9... c6 {[%clk
0:02:45.9]} 10. Ngf3 {[%clk 0:02:53.5]} 10... h6 {[%clk 0:02:39.4]} 11. Be3
{[%clk 0:02:52.7]} 11... Ng4 {[%clk 0:02:33.8]} 12. h3 {[%clk 0:02:51.9]} 12...
Nxe3 {[%clk 0:02:34]} 13. Qxe3 {[%clk 0:02:52.8]} 13... Qc7 {[%clk 0:02:20.6]}
14. O-O {[%clk 0:02:52]} 14... Re8 {[%clk 0:02:19.7]} 15. Rfd1 {[%clk
0:02:50.8]} 15... Bc5 {[%clk 0:02:13.9]} 16. Qe2 {[%clk 0:02:50.2]} 16... Nf8
{[%clk 0:02:14.3]} 17. b4 {[%clk 0:02:49.1]} 17... Be7 {[%clk 0:01:50.2]} 18.
Nc4 {[%clk 0:02:45.5]} 18... Ng6 {[%clk 0:01:49]} 19. Bb3 {[%clk 0:02:39.7]}
19... Bf8 {[%clk 0:01:41.5]} 20. a4 {[%clk 0:02:36]} 20... Be6 {[%clk
0:01:33.8]} 21. Rd2 {[%clk 0:02:34]} 21... Nf4 {[%clk 0:01:04]} 22. Qe3 {[%clk
0:02:31.2]} 22... f6 {[%clk 0:01:01.1]} 23. a5 {[%clk 0:02:19.9]} 23... b5
{[%clk 0:00:28.9]} 24. axb6 {[%clk 0:02:18.5]} 24... axb6 {[%clk 0:00:29.2]} 25.
Rxa8 {[%clk 0:02:15.2]} 25... Rxa8 {[%clk 0:00:30.1]} 26. Kh2 {[%clk 0:01:59]}
26... b5 {[%clk 0:00:16]} 27. Na5 {[%clk 0:01:51.8]} 27... Qf7 {[%clk
0:00:08.6]} 28. Bxe6 {[%clk 0:01:51.1]} 28... Qxe6 {[%clk 0:00:09]} 29. Nh4
{[%clk 0:01:48.5]} 29... c5 {[%clk 0:00:08.6]} 30. Nf5 {[%clk 0:01:47.6]} 30...
cxb4 {[%clk 0:00:08.3]} 31. cxb4 {[%clk 0:01:47.7]} 31... Bxb4 {[%clk
0:00:08.1]} 32. Qg3 {[%clk 0:01:30.5]} 32... Qf7 {[%clk 0:00:08.2]} 33. Nxh6+
{[%clk 0:01:25]} 33... Kf8 {[%clk 0:00:06.5]} 34. Nxf7 {[%clk 0:01:25]} 34...
Bxd2 {[%clk 0:00:06.4]} 35. Nb3 {[%clk 0:01:18.5]} 35... Bb4 {[%clk 0:00:05.6]}
36. Nh8 {[%clk 0:01:16.9]} 36... Ra3 {[%clk 0:00:03.2]} 37. Qg4 {[%clk
0:01:01.2]} 37... Rxb3 {[%clk 0:00:03]} 38. Qc8+ {[%clk 0:01:00.6]} 38... Ke7
{[%clk 0:00:03.5]} 39. Qc7+ {[%clk 0:00:58.2]} 39... Ke6 {[%clk 0:00:03.4]} 40.
Qc6+ {[%clk 0:00:55.7]} 40... Ke7 {[%clk 0:00:03.5]} 41. Qxb5 {[%clk 0:00:51.6]}
41... Rb2 {[%clk 0:00:02.8]} 42. Qb7+ {[%clk 0:00:50.5]} 42... Ke6 {[%clk
0:00:02.9]} 43. Qc6+ {[%clk 0:00:49.6]} 43... Ke7 {[%clk 0:00:02.9]} 44. Qc7+
{[%clk 0:00:48.7]} 44... Ke6 {[%clk 0:00:03.2]} 45. Qf7+ {[%clk 0:00:44.1]}
45... Kd6 {[%clk 0:00:03.6]} 46. Ng6 {[%clk 0:00:40.5]} 46... Rxf2 {[%clk
0:00:01.9]} 47. Nxf4 {[%clk 0:00:32.8]} 47... Rxf4 {[%clk 0:00:02.8]} 48. Qf8+
{[%clk 0:00:33]} 48... Ke6 {[%clk 0:00:02.6]} 49. Qxb4 {[%clk 0:00:33.1]} 49...
f5 {[%clk 0:00:03]} 50. Qb6+ {[%clk 0:00:32.2]} 50... Kf7 {[%clk 0:00:03.4]} 51.
Qc7+ {[%clk 0:00:32.4]} 51... Kf6 {[%clk 0:00:03.4]} 52. Qd6+ {[%clk 0:00:32.4]}
52... Kg5 {[%clk 0:00:03.6]} 53. Qe7+ {[%clk 0:00:30.8]} 53... Kg6 {[%clk
0:00:03.6]} 54. Qe6+ {[%clk 0:00:26.8]} 54... Kg5 {[%clk 0:00:03.6]} 55. exf5
{[%clk 0:00:27.2]} 55... Rxf5 {[%clk 0:00:03.3]} 56. h4+ {[%clk 0:00:24.6]}
56... Kf4 {[%clk 0:00:02.4]} 57. g3+ {[%clk 0:00:20]} 57... Ke4 {[%clk
0:00:02.6]} 58. Qg6 {[%clk 0:00:19.9]} 1-0